fUSD/lending_fUSD_20251105
["ID","MTS","AMOUNT","RATE_DAILY","PERIOD"]
[393189016,1762307439397,-1000.0,0.00025654,2]
[393189017,1762307439406,-500.87783296,0.00025654,2]
[393189018,1762307439415,-1011.48394637,0.00025654,2]
[393189019,1762307439425,-1000.0,0.00025654,2]
[393189020,1762307439435,-1000.0,0.00025654,2]
[393189021,1762307439445,-1000.0,0.00025654,2]
[393189022,1762307439454,-1000.0,0.00025654,2]
[393189023,1762307439464,-500.0,0.00025654,2]
[393189024,1762307439473,-1000.0,0.00025654,2]
[393189025,1762307439483,-1000.0,0.00025654,2]
[393189026,1762307439492,-1000.0,0.00025654,2]
[393189027,1762307439501,-1000.0,0.00025654,2]
[393189028,1762307439511,-568.88126658,0.00025654,2]
[393189029,1762307439520,-16942.3539833,0.00025667,3]
[393189030,1762307439529,-567.66214394,0.00025677,2]
[393189031,1762307439539,-248.21804158,0.000257,2]
[393189032,1762307439548,-500.0,0.00025775,2]
[393189033,1762307439557,-500.0,0.00025775,2]
[393189034,1762307439567,-500.0,0.00025775,2]
[393189035,1762307439576,-400.0,0.00025791,2]
[393189036,1762307439585,-697.03833275,0.00025809,2]
[393189037,1762307439595,-12590.43521086,0.00025827,2]
[393189038,1762307439605,-325.63609116,0.00025972,2]
[393189039,1762307439614,-1099.96,0.00026,30]
[393189040,1762307439624,-2165.26097583,0.00026092,2]
[393189050,1762307439851,-1003.52929673,0.00026112,2]
[393189051,1762307439861,-542.0,0.00026164,2]
[393189052,1762307439871,-1500.0,0.00026202,2]
[393189053,1762307439880,-1500.0,0.00026202,2]
[393189054,1762307439889,-866.15389441,0.00026202,2]
[393189055,1762307439898,-1500.0,0.00026202,2]
[393189056,1762307439907,-1500.0,0.00026202,2]
[393189057,1762307439917,-1500.0,0.00026202,2]
[393189058,1762307439926,-166.66,0.00026309,2]
[393189059,1762307439937,-587.0,0.00026314,2]
[393189060,1762307439952,-587.0,0.00026314,2]
[393189061,1762307439962,-500.0,0.00026322,2]
[393189062,1762307439972,-500.0,0.00026322,2]
[393189063,1762307439981,-1000.0,0.00026323,2]
[393189064,1762307439993,-1001.34025058,0.00026323,2]
[393189065,1762307440002,-562.4427637,0.00026323,2]
[393189066,1762307440012,-200.0,0.00026434,2]
[393189067,1762307440023,-6314.67,0.00026451,2]
[393189068,1762307440033,-600.0,0.00026476,2]
[393189069,1762307440043,-500.0,0.00026555,2]
[393189070,1762307440052,-2351.0,0.00026561,2]
[393189071,1762307440061,-1256.47893979,0.0002675,2]
[393189072,1762307440071,-2000.0,0.0002675,2]
[393189073,1762307440081,-776.15714942,0.0002675,2]
[393189074,1762307440090,-977.06605906,0.0002675,2]
[393189075,1762307440099,-732.45982984,0.0002675,2]
[393189076,1762307440109,-16942.3539833,0.00027,3]
[393189077,1762307440119,-198.40813263,0.00027159,2]
[393189078,1762307440128,-698.16663957,0.00027161,2]
[393189079,1762307440138,-156.72,0.00027192,7]
[393189080,1762307440147,-154.90345234,0.00027275,7]
[393189081,1762307440157,-4706.0,0.00027278,2]
[393189082,1762307440167,-510.1435953,0.00027296,2]
[393189083,1762307440177,-2500.0,0.00027298,2]
[393189084,1762307440191,-300.0,0.00027397,2]
[393189085,1762307440201,-512.38,0.00027397,2]
[393189086,1762307440210,-198.40813263,0.00027428,2]
[393189087,1762307440220,-251.92,0.00027484,2]
[393189088,1762307440229,-312.3738774,0.000275,5]
[393189089,1762307440238,-594.82279831,0.00027511,2]
[393189090,1762307440248,-12590.43521086,0.00027591,2]
[393189092,1762307440258,-2261.0,0.00027598,2]
[393189093,1762307440268,-198.40813263,0.00027683,2]
[393189094,1762307440277,-2000.0,0.000277,2]
[393189095,1762307440287,-172.37102183,0.00027729,5]
[393189096,1762307440296,-500.0,0.00027791,5]
[393189097,1762307440306,-160.29212742,0.00027791,5]
[393189098,1762307440316,-500.0,0.00027791,5]
[393189099,1762307440326,-500.0,0.00027791,5]
[393189100,1762307440336,-501.4824196,0.00027791,5]
[393189102,1762307440346,-500.0,0.00027791,5]
[393189104,1762307440355,-500.0,0.00027791,5]
[393189106,1762307440366,-161.27255273,0.00027791,5]
[393189107,1762307440375,-500.0,0.00027791,5]
[393189108,1762307440384,-5888.0,0.00027814,2]
[393189109,1762307440395,-2489.4221674,0.00027846,5]
[393189110,1762307440404,-356.82,0.00027898,2]
[393189111,1762307440414,-207.54456428,0.00027993,4]
[393189112,1762307440423,-168.0,0.00027999,2]
[393189113,1762307440432,-168.0,0.00028039,2]
[393189114,1762307440446,-168.0,0.00028044,2]
[393189115,1762307440456,-16942.3539833,0.00028047,3]
[393189116,1762307440465,-13790.4538588,0.00028048,3]
[393189117,1762307440475,-150.0,0.00028058,2]
[393189118,1762307440484,-150.8104487,0.00028058,2]
[393189119,1762307440494,-152.31488761,0.00028058,2]
[393189120,1762307440504,-152.72526817,0.00028058,2]
[393189121,1762307440513,-150.53676099,0.00028058,2]
[393189122,1762307440523,-150.0,0.00028058,2]
[393189123,1762307440532,-150.0,0.00028058,2]
[393189124,1762307440542,-150.59572911,0.00028058,2]
[393189125,1762307440551,-150.0,0.00028058,2]
[393189126,1762307440562,-150.50069053,0.00028058,2]
[393189127,1762307440572,-500.0,0.00028058,2]
[393189128,1762307440581,-500.0,0.00028058,2]
[393189129,1762307440592,-500.0,0.00028058,2]
[393189130,1762307440602,-213.18490842,0.00028058,2]
[393189131,1762307440612,-500.0,0.00028058,2]
[393189132,1762307440622,-500.0,0.00028058,2]
[393189133,1762307440633,-150.0,0.00028058,2]
[393189134,1762307440642,-150.0,0.00028058,2]
[393189135,1762307440652,-150.42731866,0.00028058,2]
[393189136,1762307440662,-152.10989267,0.00028058,2]
[393189137,1762307440680,-150.0,0.00028058,2]
[393189138,1762307440695,-500.0,0.00028058,2]
[393189139,1762307440705,-152.84105378,0.00028058,2]
[393189140,1762307440715,-433.0,0.00028058,2]
[393189141,1762307440725,-536.0,0.00028058,2]
[393189142,1762307440735,-500.0,0.00028058,2]
[393189143,1762307440745,-154.17848018,0.00028058,2]
[393189144,1762307440755,-162.35889361,0.00028058,2]
[393189145,1762307440764,-150.0,0.00028058,2]
[393189146,1762307440773,-150.0,0.00028058,2]
[393189147,1762307440783,-154.19012846,0.00028058,2]
[393189148,1762307440793,-150.0,0.00028058,2]
[393189149,1762307440803,-150.0,0.00028058,2]
[393189150,1762307440813,-190.62744425,0.00028058,2]
[393189151,1762307440823,-500.0,0.00028058,2]
[393189152,1762307440832,-150.0,0.00028058,2]
[393189153,1762307440842,-839.06975105,0.00028069,2]
[393189154,1762307440852,-150.0,0.00028073,5]
[393189155,1762307440861,-150.0,0.00028073,5]
[393189156,1762307440871,-162.32794439,0.00028114,2]
[393189157,1762307440880,-168.0,0.00028115,2]
[393189158,1762307440890,-198.40813263,0.00028123,2]
[393189159,1762307440899,-150.82628027,0.00028195,2]
[393189160,1762307440908,-150.0,0.00028195,2]
[393189161,1762307440917,-152.83385556,0.00028195,2]
[393189162,1762307440926,-155.33401577,0.00028195,2]
[393189163,1762307440940,-500.0,0.00028195,2]
[393189164,1762307440953,-500.0,0.00028195,2]
[393189165,1762307440962,-150.0,0.00028195,2]
[393189166,1762307440971,-150.0,0.00028195,2]
[393189167,1762307440983,-150.0,0.00028195,2]
[393189168,1762307440993,-500.0,0.00028195,2]
[393189169,1762307441002,-433.0,0.00028195,2]
[393189170,1762307441012,-536.0,0.00028195,2]
[393189171,1762307441024,-564.94863932,0.00028195,2]
[393189172,1762307441034,-150.0,0.00028195,2]
[393189173,1762307441043,-150.0,0.00028195,2]
[393189174,1762307441052,-500.0,0.00028195,2]
[393189175,1762307441063,-150.0,0.00028195,2]
[393189176,1762307441072,-198.40813263,0.00028263,2]
[393189177,1762307441082,-8682.45668421,0.0002829,2]
[393189178,1762307441091,-13790.4538588,0.00028319,3]
[393189179,1762307441100,-16942.3539833,0.00028329,3]
[393189180,1762307441110,-211.82257501,0.00028332,2]
[393189181,1762307441119,-500.0,0.00028332,2]
[393189182,1762307441128,-500.0,0.00028332,2]
[393189183,1762307441138,-158.74802862,0.00028332,2]
[393189184,1762307441147,-152.32082248,0.00028332,2]
[393189185,1762307441156,-203.09765029,0.00028332,2]
[393189186,1762307441166,-500.0,0.00028332,2]
[393189187,1762307441175,-433.0,0.00028332,2]
[393189188,1762307441188,-536.0,0.00028332,2]
[393189189,1762307441198,-150.0,0.00028332,2]
[393189190,1762307441208,-150.0,0.00028332,2]
[393189191,1762307441218,-170.04703191,0.00028332,2]
[393189192,1762307441227,-150.0,0.00028332,2]
[393189193,1762307441237,-1000.0,0.00028339,5]
[393189194,1762307441246,-1000.0,0.00028339,5]
[393189195,1762307441257,-1000.0,0.00028339,5]
[393189196,1762307441266,-1000.0,0.00028339,5]
[393189197,1762307441275,-1000.0,0.00028339,5]
[393189198,1762307441285,-1000.0,0.00028339,5]
[393189199,1762307441294,-200.0,0.00028339,2]
[393189200,1762307441303,-431.0,0.00028353,2]
[393189201,1762307441313,-839.06975105,0.00028385,2]
[393189202,1762307441322,-500.0,0.00028469,2]
[393189203,1762307441332,-500.0,0.00028469,2]
[393189204,1762307441341,-556.30061184,0.00028469,2]
[393189205,1762307441351,-433.0,0.00028469,2]
[393189206,1762307441360,-536.0,0.00028469,2]
[393189207,1762307441370,-150.0,0.00028469,2]
[393189208,1762307441379,-208.65523748,0.00028469,2]
[393189209,1762307441388,-150.0,0.00028469,2]
[393189210,1762307441398,-168.0,0.00028532,2]
[393189211,1762307441407,-13790.4538588,0.00028571,3]
[393189212,1762307441417,-156.72,0.00028577,30]
[393189213,1762307441426,-431.0,0.00028581,2]
[393189214,1762307441440,-626.0,0.00028586,2]
[393189215,1762307441449,-823.0,0.00028586,2]
[393189216,1762307441458,-500.0,0.00028606,2]
[393189217,1762307441467,-500.0,0.00028606,2]
[393189218,1762307441476,-433.0,0.00028606,2]
[393189219,1762307441485,-536.0,0.00028606,2]
[393189220,1762307441495,-202.64109713,0.00028606,2]
[393189221,1762307441504,-161.70059104,0.00028606,2]
[393189222,1762307441513,-155.09799193,0.00028613,2]
[393189223,1762307441523,-333.54349954,0.00028613,2]
[393189224,1762307441535,-250.0,0.00028621,5]
[393189225,1762307441544,-250.0,0.00028621,5]
[393189226,1762307441554,-198.40813263,0.00028651,2]
[393189227,1762307441563,-839.06975105,0.00028684,2]
[393189228,1762307441573,-251.92,0.00028741,2]
[393189229,1762307441582,-500.0,0.00028743,2]
[393189230,1762307441591,-487.04730745,0.00028743,2]
[393189231,1762307441601,-433.0,0.00028743,2]
[393189232,1762307441610,-536.0,0.00028743,2]
[393189233,1762307441620,-168.0,0.00028778,2]
[393189234,1762307441629,-198.40813263,0.0002878,2]
[393189235,1762307441638,-13790.4538588,0.00028867,3]
[393189236,1762307441647,-16942.3539833,0.00028877,3]
[393189237,1762307441656,-381.56336037,0.0002888,2]
[393189238,1762307441665,-433.0,0.0002888,2]
[393189239,1762307441674,-536.0,0.0002888,2]
[393189240,1762307441688,-1500.0,0.00028887,5]
[393189241,1762307441698,-1500.0,0.00028887,5]
[393189242,1762307441708,-835.28782789,0.00028887,5]
[393189243,1762307441717,-1289.26333301,0.00028887,5]
[393189244,1762307441726,-1500.0,0.00028887,5]
[393189245,1762307441735,-1521.19557868,0.00028887,5]
[393189246,1762307441744,-1000.0,0.000289,2]
[393189247,1762307441753,-2281.0814461,0.00028962,2]
[393189248,1762307441762,-3292.0,0.00028989,2]
[393189249,1762307441771,-2281.0814461,0.00029008,2]
[393189250,1762307441780,-433.0,0.00029017,2]
[393189251,1762307441790,-536.0,0.00029017,2]
[393189252,1762307441799,-839.06975105,0.00029028,2]
[393189253,1762307441809,-13790.4538588,0.00029052,3]
[393189254,1762307441819,-2281.0814461,0.00029053,2]
[393189255,1762307441828,-151.0,0.00029053,31]
[393189256,1762307441838,-151.0,0.00029053,31]
[393189257,1762307441847,-161.96403,0.00029053,31]
[393189258,1762307441856,-151.0,0.00029053,31]
[393189259,1762307441865,-151.0,0.00029053,31]
[393189260,1762307441875,-151.0,0.00029053,31]
[393189261,1762307441885,-151.0,0.00029053,31]
[393189262,1762307441894,-151.0,0.00029053,31]
[393189263,1762307441903,-247.089285,0.00029053,31]
[393189264,1762307441913,-279.732024,0.00029053,31]
[393189265,1762307441922,-155.982345,0.00029053,31]
[393189266,1762307441932,-151.0,0.00029053,31]
[393189267,1762307441949,-153.697415,0.00029053,31]
[393189268,1762307441959,-568.364366,0.00029053,31]
[393189269,1762307441969,-568.364366,0.00029053,31]
[393189270,1762307441979,-568.364366,0.00029053,31]
[393189271,1762307441989,-568.364366,0.00029053,31]
[393189272,1762307442000,-151.0,0.00029053,31]
[393189273,1762307442010,-151.0,0.00029053,31]
[393189274,1762307442022,-151.0,0.00029053,30]
[393189275,1762307442032,-253.379154,0.00029053,31]
[393189276,1762307442041,-152.94842,0.00029053,31]
[393189277,1762307442051,-13790.4538588,0.00029053,3]
[393189278,1762307442060,-16942.3539833,0.00029062,3]
[393189279,1762307442069,-41371.3615765,0.00029062,3]
[393189280,1762307442078,-163.32,0.00029062,2]
[393189281,1762307442087,-151.0,0.00029062,31]
[393189282,1762307442096,-151.0,0.00029062,31]
[393189283,1762307442105,-153.340919,0.00029062,31]
[393189284,1762307442114,-151.0,0.00029062,31]
[393189285,1762307442123,-151.0,0.00029062,31]
[393189286,1762307442132,-200.432926,0.00029062,31]
[393189287,1762307442142,-252.467454,0.00029062,31]
[393189288,1762307442150,-252.467454,0.00029062,31]
[393189289,1762307442160,-252.467454,0.00029062,31]
[393189290,1762307442169,-252.467454,0.00029062,31]
[393189291,1762307442179,-217.205769,0.00029062,31]
[393189292,1762307442192,-217.205769,0.00029062,31]
[393189293,1762307442202,-217.205769,0.00029062,31]
[393189294,1762307442212,-217.205769,0.00029062,31]
[393189295,1762307442222,-151.0,0.00029062,31]
[393189296,1762307442231,-151.0,0.00029062,31]
[393189297,1762307442241,-151.0,0.00029062,31]
[393189298,1762307442251,-152.061175,0.00029062,31]
[393189299,1762307442261,-151.0,0.00029062,31]
[393189300,1762307442270,-16942.3539833,0.00029062,3]
[393189301,1762307442280,-5000.0,0.00029063,2]
[393189302,1762307442289,-579.43268609,0.00029071,7]
[393189303,1762307442299,-84711.7699164,0.00029072,3]
[393189304,1762307442308,-96533.1770117,0.00029072,3]
[393189305,1762307442317,-1820.38436719,0.00029072,2]
[393189306,1762307442326,-150.4,0.00029072,2]
[393189307,1762307442336,-150.4,0.00029072,2]
[393189308,1762307442346,-151.0,0.00029072,31]
[393189309,1762307442355,-154.051706,0.00029072,31]
[393189310,1762307442365,-151.0,0.00029072,31]
[393189311,1762307442374,-151.0,0.00029072,31]
[393189312,1762307442385,-151.0,0.00029072,31]
[393189313,1762307442394,-273.201537,0.00029072,31]
[393189314,1762307442403,-151.0,0.00029072,31]
[393189315,1762307442412,-151.0,0.00029072,31]
[393189316,1762307442421,-151.0,0.00029072,31]
[393189317,1762307442430,-155.848415,0.00029072,31]
[393189318,1762307442444,-180.844811,0.00029072,31]
[393189319,1762307442453,-153.163445,0.00029072,31]
[393189320,1762307442463,-154.973677,0.00029072,31]
[393189321,1762307442472,-151.0,0.00029072,31]
[393189322,1762307442482,-151.0,0.00029072,31]
[393189323,1762307442491,-151.0,0.00029072,31]
[393189324,1762307442501,-151.0,0.00029072,31]
[393189325,1762307442510,-151.0,0.00029072,31]
[393189326,1762307442519,-151.0,0.00029072,31]
[393189327,1762307442529,-151.0,0.00029072,31]
[393189328,1762307442538,-151.0,0.00029072,31]
[393189329,1762307442548,-291.198301,0.00029072,28]
[393189330,1762307442557,-291.198301,0.00029072,28]
[393189332,1762307442567,-291.198301,0.00029072,28]
[393189334,1762307442578,-291.198301,0.00029072,28]
[393189335,1762307442587,-151.0,0.00029072,31]
[393189336,1762307442596,-151.0,0.00029072,31]
[393189337,1762307442606,-151.0,0.00029072,31]
[393189339,1762307442615,-151.0,0.00029072,31]
[393189340,1762307442625,-151.0,0.00029072,31]
[393189342,1762307442634,-151.0,0.00029072,31]
[393189343,1762307442643,-151.0,0.00029072,31]
[393189345,1762307442653,-151.0,0.00029072,31]
[393189346,1762307442662,-568.364366,0.00029072,31]
[393189347,1762307442671,-568.364366,0.00029072,31]
[393189348,1762307442680,-568.364366,0.00029072,31]
[393189349,1762307442692,-568.364366,0.00029072,31]
[393189350,1762307442701,-158.091425,0.00029072,31]
[393189351,1762307442710,-151.0,0.00029072,31]
[393189352,1762307442719,-161.327678,0.00029072,30]
[393189354,1762307442728,-175938.7496403,0.00029082,2]
[393189355,1762307442737,-811.5314023,0.00029082,2]
[393189356,1762307442747,-151.0,0.00029082,31]
[393189358,1762307442756,-151.0,0.00029082,31]
[393189359,1762307442765,-151.0,0.00029082,31]
[393189360,1762307442773,-151.0,0.00029082,31]
[393189361,1762307442783,-151.0,0.00029082,31]
[393189362,1762307442791,-153.567204,0.00029082,31]
[393189363,1762307442801,-166.501579,0.00029082,31]
[393189365,1762307442810,-151.0,0.00029082,31]
[393189366,1762307442818,-151.0,0.00029082,31]
[393189367,1762307442827,-151.0,0.00029082,31]
[393189368,1762307442836,-151.0,0.00029082,31]
[393189369,1762307442845,-246.647452,0.00029082,31]
[393189370,1762307442853,-246.647452,0.00029082,31]
[393189371,1762307442863,-432.579819,0.00029082,31]
[393189372,1762307442871,-432.579819,0.00029082,31]
[393189373,1762307442881,-432.579819,0.00029082,31]
[393189374,1762307442891,-432.579819,0.00029082,31]
[393189375,1762307442900,-151.0,0.00029082,31]
[393189376,1762307442909,-151.0,0.00029082,31]
[393189377,1762307442919,-180.441996,0.00029082,31]
[393189378,1762307442928,-151.0,0.00029082,31]
[393189379,1762307442943,-151.0,0.00029082,31]
[393189380,1762307442951,-151.0,0.00029082,31]
[393189381,1762307442960,-151.0,0.00029082,31]
[393189382,1762307442969,-151.0,0.00029082,31]
[393189383,1762307442979,-151.0,0.00029082,31]
[393189384,1762307442989,-151.0,0.00029082,31]
[393189385,1762307442999,-151.0,0.00029082,31]
[393189386,1762307443018,-151.0,0.00029082,31]
[393189387,1762307443029,-151.0,0.00029082,31]
[393189388,1762307443038,-153.730207,0.00029082,31]
[393189389,1762307443047,-330.136094,0.00029082,31]
[393189390,1762307443057,-330.136094,0.00029082,31]
[393189391,1762307443066,-153.395076,0.00029082,31]
[393189392,1762307443076,-330.136094,0.00029082,31]
[393189393,1762307443086,-330.136094,0.00029082,31]
[393189394,1762307443095,-151.0,0.00029082,31]
[393189395,1762307443105,-151.0,0.00029082,31]
[393189396,1762307443115,-164.528843,0.00029082,31]
[393189397,1762307443125,-151.0,0.00029082,31]
[393189398,1762307443135,-151.0,0.00029082,31]
[393189399,1762307443145,-151.0,0.00029082,31]
[393189400,1762307443154,-151.0,0.00029082,31]
[393189401,1762307443164,-151.0,0.00029082,31]
[393189402,1762307443174,-151.0,0.00029082,31]
[393189403,1762307443184,-151.0,0.00029082,31]
[393189404,1762307443196,-151.0,0.00029082,31]
[393189405,1762307443206,-233.420837,0.00029082,31]
[393189406,1762307443216,-151.0,0.00029082,31]
[393189407,1762307443225,-151.0,0.00029082,31]
[393189408,1762307443235,-151.0,0.00029082,31]
[393189409,1762307443244,-151.0,0.00029082,31]
[393189410,1762307443254,-151.0,0.00029082,31]
[393189411,1762307443262,-185.285369,0.00029082,31]
[393189413,1762307443271,-151.0,0.00029082,31]
[393189415,1762307443281,-173.576813,0.00029082,31]
[393189417,1762307443290,-151.0,0.00029082,31]
[393189419,1762307443300,-151.0,0.00029082,31]
[393189420,1762307443310,-151.0,0.00029082,30]
[393189421,1762307443321,-151.0,0.00029082,31]
[393189422,1762307443330,-201.136495,0.00029082,31]
[393189423,1762307443340,-151.0,0.00029082,31]
[393189424,1762307443350,-151.0,0.00029082,31]
[393189425,1762307443360,-151.0,0.00029082,31]
[393189426,1762307443369,-151.0,0.00029082,31]
[393189427,1762307443378,-151.0,0.00029082,31]
[393189428,1762307443388,-151.0,0.00029082,31]
[393189429,1762307443398,-151.0,0.00029082,31]
[393189430,1762307443407,-155.375493,0.00029082,31]
[393189431,1762307443416,-284.999809,0.00029082,31]
[393189432,1762307443426,-163.972608,0.00029082,31]
[393189433,1762307443438,-294.714642,0.00029082,31]
[393189434,1762307443447,-155.270578,0.00029082,31]
[393189435,1762307443456,-151.0,0.00029082,31]
[393189436,1762307443466,-151.0,0.00029082,31]
[393189437,1762307443475,-252.467454,0.00029082,31]
[393189438,1762307443485,-252.467454,0.00029082,31]
[393189439,1762307443494,-252.467454,0.00029082,31]
[393189440,1762307443504,-252.467454,0.00029082,31]
[393189441,1762307443513,-217.205769,0.00029082,31]
[393189442,1762307443522,-217.205769,0.00029082,31]
[393189443,1762307443532,-217.205769,0.00029082,31]
[393189444,1762307443541,-217.205769,0.00029082,31]
[393189445,1762307443550,-151.0,0.00029082,31]
[393189446,1762307443559,-151.0,0.00029082,31]
[393189447,1762307443569,-151.0,0.00029082,31]
[393189448,1762307443578,-154.681807,0.00029082,31]
[393189449,1762307443587,-5734.0,0.00029103,2]
[393189450,1762307443597,-839.06975105,0.00029117,2]
[393189451,1762307443606,-13790.4538588,0.00029133,3]
[393189452,1762307443615,-16942.3539833,0.00029143,3]
[393189453,1762307443624,-151.0,0.00029143,31]
[393189454,1762307443634,-151.0,0.00029143,31]
[393189455,1762307443644,-151.0,0.00029143,31]
[393189456,1762307443654,-151.0,0.00029143,31]
[393189457,1762307443664,-151.0,0.00029143,31]
[393189458,1762307443674,-151.0,0.00029143,31]
[393189459,1762307443683,-151.0,0.00029143,31]
[393189460,1762307443694,-568.364366,0.00029143,31]
[393189461,1762307443704,-568.364366,0.00029143,31]
[393189462,1762307443713,-568.364366,0.00029143,31]
[393189463,1762307443723,-568.364366,0.00029143,31]
[393189464,1762307443732,-151.0,0.00029143,31]
[393189465,1762307443741,-16942.3539833,0.00029143,3]
[393189466,1762307443752,-27580.9077176,0.00029143,3]
[393189467,1762307443767,-151.0,0.00029153,31]
[393189468,1762307443776,-151.0,0.00029153,31]
[393189469,1762307443785,-151.0,0.00029153,31]
[393189470,1762307443795,-151.0,0.00029153,31]
[393189471,1762307443808,-151.0,0.00029153,31]
[393189472,1762307443819,-151.0,0.00029153,31]
[393189473,1762307443828,-151.0,0.00029153,31]
[393189474,1762307443838,-152.616466,0.00029153,31]
[393189475,1762307443847,-151.0,0.00029153,31]
[393189476,1762307443856,-151.0,0.00029153,31]
[393189477,1762307443865,-151.0,0.00029153,31]
[393189478,1762307443878,-151.0,0.00029153,31]
[393189479,1762307443891,-151.0,0.00029153,31]
[393189480,1762307444058,-267.725091,0.00029153,31]
[393189481,1762307444068,-151.0,0.00029153,31]
[393189482,1762307444077,-291.198301,0.00029153,28]
[393189483,1762307444086,-291.198301,0.00029153,28]
[393189484,1762307444096,-291.198301,0.00029153,28]
[393189485,1762307444105,-291.198301,0.00029153,28]
[393189486,1762307444114,-50827.0619498,0.00029153,3]
[393189487,1762307444123,-55161.8154353,0.00029153,3]
[393189488,1762307444132,-433.0,0.00029154,2]
[393189489,1762307444142,-536.0,0.00029154,2]
[393189490,1762307444152,-86159.1654565,0.00029163,2]
[393189491,1762307444162,-5521.9336705,0.00029163,2]
[393189492,1762307444171,-151.0,0.00029163,31]
[393189493,1762307444180,-182.039707,0.00029163,31]
[393189494,1762307444190,-252.467454,0.00029163,31]
[393189495,1762307444200,-252.467454,0.00029163,31]
[393189496,1762307444209,-252.467454,0.00029163,31]
[393189497,1762307444219,-252.467454,0.00029163,31]
[393189498,1762307444228,-217.205769,0.00029163,31]
[393189499,1762307444238,-217.205769,0.00029163,31]
[393189500,1762307444248,-217.205769,0.00029163,31]
[393189501,1762307444258,-217.205769,0.00029163,31]
[393189502,1762307444267,-151.0,0.00029163,31]
[393189503,1762307444276,-151.0,0.00029163,31]
[393189504,1762307444285,-158.55006,0.00029163,31]
[393189505,1762307444295,-350.0,0.00029168,5]
[393189506,1762307444305,-253.96720107,0.00029168,5]
[393189507,1762307444315,-211.91475997,0.00029173,5]
[393189508,1762307444325,-503.15659393,0.00029173,5]
[393189509,1762307444335,-198.40813263,0.00029249,2]
[393189510,1762307444344,-433.0,0.00029291,2]
[393189511,1762307444353,-536.0,0.00029291,2]
[393189512,1762307444362,-431.0,0.0002933,7]
[393189513,1762307444373,-13790.4538588,0.00029341,3]
[393189514,1762307444383,-16942.3539833,0.00029351,3]
[393189515,1762307444394,-13790.4538588,0.00029351,3]
[393189516,1762307444404,-12590.43521086,0.00029355,2]
[393189517,1762307444415,-151.0,0.00029355,31]
[393189518,1762307444425,-260.768611,0.00029355,31]
[393189519,1762307444436,-151.0,0.00029355,31]
[393189520,1762307444445,-151.0,0.00029355,31]
[393189521,1762307444455,-151.0,0.00029355,31]
[393189522,1762307444464,-151.0,0.00029355,31]
[393189523,1762307444474,-151.0,0.00029355,31]
[393189524,1762307444483,-568.364366,0.00029355,31]
[393189525,1762307444491,-568.364366,0.00029355,31]
[393189526,1762307444501,-568.364366,0.00029355,31]
[393189527,1762307444511,-568.364366,0.00029355,31]
[393189528,1762307444520,-151.0,0.00029355,31]
[393189529,1762307444529,-151.0,0.00029361,31]
[393189530,1762307444538,-151.0,0.00029361,31]
[393189531,1762307444547,-151.0,0.00029361,31]
[393189532,1762307444556,-151.0,0.00029361,31]
[393189533,1762307444566,-151.0,0.00029361,31]
[393189534,1762307444575,-151.0,0.00029361,31]
[393189535,1762307444584,-151.0,0.00029361,31]
[393189536,1762307444594,-246.647452,0.00029361,31]
[393189537,1762307444604,-246.647452,0.00029361,31]
[393189538,1762307444613,-432.579819,0.00029361,31]
[393189539,1762307444622,-432.579819,0.00029361,31]
[393189540,1762307444631,-432.579819,0.00029361,31]